[Event "Titled Tuesday Blitz November 07 Early 2023"]
[White "Samunenkov, Ihor"]
[Black "Jaskolka, Tomasz"]
[WhiteFideId "14187086"]
[BlackFideId "1170791"]
[WhiteElo "2763"]
[BlackElo "2592"]
[Result "1/2-1/2"]
[Round "10"]
[TimeControl "180+1"]
[Date "2023.11.07"]
[WhiteClock "0:00:03"]
[BlackClock "0:00:12"]
[Board "39"]

1. d4 {[%clk 0:03:00]}  d5 {[%clk 0:02:59]} 2. c4 {[%clk 0:03:00]}  e5 {[%clk 0:02:59]} 3. dxe5 {[%clk 0:02:57]}  d4 {[%clk 0:03:00]} 4. Nf3 {[%clk 0:02:57]}  Nc6 {[%clk 0:02:59]} 5. a3 {[%clk 0:02:58]}  a5 {[%clk 0:02:58]} 6. g3 {[%clk 0:02:47]}  Nge7 {[%clk 0:02:57]} 7. Bg5 {[%clk 0:02:38]}  h6 {[%clk 0:02:57]} 8. Bxe7 {[%clk 0:02:38]}  Bxe7 {[%clk 0:02:56]} 9. Bg2 {[%clk 0:02:37]}  Bc5 {[%clk 0:02:43]} 10. Nbd2 {[%clk 0:02:28]}  a4 {[%clk 0:02:34]} 11. O-O {[%clk 0:02:26]}  O-O {[%clk 0:02:34]} 12. b4 {[%clk 0:02:25]}  axb3 {[%clk 0:02:27]} 13. Nxb3 {[%clk 0:02:26]}  Bxa3 {[%clk 0:02:08]} 14. Nfxd4 {[%clk 0:02:11]}  Nxd4 {[%clk 0:01:58]} 15. Nxd4 {[%clk 0:02:08]}  Ra6 {[%clk 0:01:32]} 16. Rb1 {[%clk 0:01:17]}  c6 {[%clk 0:01:25]} 17. e3 {[%clk 0:00:58]}  Qe7 {[%clk 0:01:18]} 18. f4 {[%clk 0:00:57]}  f6 {[%clk 0:01:14]} 19. exf6 {[%clk 0:00:54]}  Qxe3+ {[%clk 0:01:14]} 20. Kh1 {[%clk 0:00:54]}  Rxf6 {[%clk 0:01:08]} 21. Re1 {[%clk 0:00:49]}  Qc3 {[%clk 0:00:58]} 22. Nc2 {[%clk 0:00:27]}  Bf5 {[%clk 0:00:44]} 23. Nxa3 {[%clk 0:00:20]}  Qxa3 {[%clk 0:00:41]} 24. Rxb7 {[%clk 0:00:18]}  Qd6 {[%clk 0:00:32]} 25. Qxd6 {[%clk 0:00:13]}  Rxd6 {[%clk 0:00:32]} 26. h3 {[%clk 0:00:13]}  Rd7 {[%clk 0:00:27]} 27. Rb8+ {[%clk 0:00:11]}  Kh7 {[%clk 0:00:27]} 28. g4 {[%clk 0:00:11]}  Bd3 {[%clk 0:00:26]} 29. f5 {[%clk 0:00:11]}  h5 {[%clk 0:00:16]} 30. Re6 {[%clk 0:00:06]}  hxg4 {[%clk 0:00:12]} 31. hxg4 {[%clk 0:00:06]}  Bxc4 {[%clk 0:00:13]} 32. Ree8 {[%clk 0:00:05]}  Kh6 {[%clk 0:00:13]} 33. Rbc8 {[%clk 0:00:03]}  Bd5 {[%clk 0:00:11]} 34. Bxd5 {[%clk 0:00:02]}  cxd5 {[%clk 0:00:10]} 35. Re6+ {[%clk 0:00:02]}  Rxe6 {[%clk 0:00:10]} 36. fxe6 {[%clk 0:00:03]}  Re7 {[%clk 0:00:10]} 37. Rd8 {[%clk 0:00:03]}  Rxe6 {[%clk 0:00:11]} 38. Rxd5 {[%clk 0:00:04]}  Kg6 {[%clk 0:00:10]} 39. Kg2 {[%clk 0:00:04]}  Kf6 {[%clk 0:00:11]} 40. Kf3 {[%clk 0:00:04]}  g5 {[%clk 0:00:11]} 41. Rf5+ {[%clk 0:00:05]}  Kg6 {[%clk 0:00:11]} 42. Ra5 {[%clk 0:00:03]}  Rd6 {[%clk 0:00:12]} 1/2-1/2


[Site "https://www.chess.com"]

[Event "Titled Tuesday Blitz November 07 Early 2023"]
[White "Kalogeris, Ioannis"]
[Black "Korchmar, Vasiliy"]
[WhiteFideId "4239563"]
[BlackFideId "24131750"]
[WhiteElo "2590"]
[BlackElo "2752"]
[Result "1-0"]
[Round "10"]
[TimeControl "180+1"]
[Date "2023.11.07"]
[WhiteClock "0:00:03"]
[BlackClock "0:00:00"]
[Board "40"]

1. e4 {[%clk 0:03:00]}  c5 {[%clk 0:03:00]} 2. Nf3 {[%clk 0:02:58]}  d6 {[%clk 0:03:00]} 3. Bb5+ {[%clk 0:02:58]}  Bd7 {[%clk 0:03:00]} 4. Bxd7+ {[%clk 0:02:51]}  Nxd7 {[%clk 0:03:01]} 5. O-O {[%clk 0:02:42]}  Ngf6 {[%clk 0:03:01]} 6. Qe2 {[%clk 0:02:38]}  e6 {[%clk 0:03:02]} 7. b3 {[%clk 0:02:36]}  g6 {[%clk 0:03:00]} 8. Bb2 {[%clk 0:02:36]}  Bg7 {[%clk 0:03:01]} 9. d3 {[%clk 0:02:31]}  O-O {[%clk 0:03:00]} 10. Nbd2 {[%clk 0:02:27]}  e5 {[%clk 0:02:55]} 11. Nc4 {[%clk 0:02:24]}  Nb8 {[%clk 0:02:54]} 12. c3 {[%clk 0:02:16]}  Nc6 {[%clk 0:02:54]} 13. Rad1 {[%clk 0:02:07]}  Re8 {[%clk 0:02:53]} 14. Ne1 {[%clk 0:01:49]}  d5 {[%clk 0:02:53]} 15. Ne3 {[%clk 0:01:37]}  d4 {[%clk 0:02:52]} 16. Ng4 {[%clk 0:01:24]}  Nd7 {[%clk 0:02:48]} 17. cxd4 {[%clk 0:01:16]}  cxd4 {[%clk 0:02:49]} 18. Bc1 {[%clk 0:01:10]}  h5 {[%clk 0:02:24]} 19. Nh6+ {[%clk 0:01:10]}  Kf8 {[%clk 0:02:25]} 20. Nf3 {[%clk 0:00:54]}  f6 {[%clk 0:02:19]} 21. Nh4 {[%clk 0:00:51]}  Bxh6 {[%clk 0:02:18]} 22. Bxh6+ {[%clk 0:00:41]}  Kf7 {[%clk 0:02:18]} 23. f4 {[%clk 0:00:38]}  exf4 {[%clk 0:02:15]} 24. Rxf4 {[%clk 0:00:32]}  Nce5 {[%clk 0:01:56]} 25. Rdf1 {[%clk 0:00:29]}  Kg8 {[%clk 0:01:36]} 26. Nxg6 {[%clk 0:00:27]}  Nxg6 {[%clk 0:01:34]} 27. Qxh5 {[%clk 0:00:26]}  Nxf4 {[%clk 0:01:20]} 28. Qg4+ {[%clk 0:00:26]}  Kf7 {[%clk 0:01:18]} 29. Qg7+ {[%clk 0:00:26]}  Ke6 {[%clk 0:01:18]} 30. Qg4+ {[%clk 0:00:21]}  Kd6 {[%clk 0:01:10]} 31. Bxf4+ {[%clk 0:00:16]}  Ne5 {[%clk 0:01:00]} 32. Qg6 {[%clk 0:00:13]}  Re6 {[%clk 0:00:40]} 33. Rc1 {[%clk 0:00:10]}  Rc8 {[%clk 0:00:39]} 34. Rf1 {[%clk 0:00:06]}  Qg8 {[%clk 0:00:38]} 35. Qf5 {[%clk 0:00:06]}  Rc2 {[%clk 0:00:39]} 36. Bg3 {[%clk 0:00:05]}  Rxa2 {[%clk 0:00:19]} 37. Qh5 {[%clk 0:00:05]}  Qg5 {[%clk 0:00:15]} 38. Qh8 {[%clk 0:00:03]}  Qe3+ {[%clk 0:00:05]} 39. Kh1 {[%clk 0:00:03]}  Qd2 {[%clk 0:00:02]} 40. Qd8+ {[%clk 0:00:03]}  Kc6 {[%clk 0:00:03]} 41. Qc8+ {[%clk 0:00:02]}  Kd6 {[%clk 0:00:03]} 42. Qd8+ {[%clk 0:00:02]}  Kc5 {[%clk 0:00:03]} 43. Qd5+ {[%clk 0:00:02]}  Kb4 {[%clk 0:00:03]} 44. Be1 {[%clk 0:00:02]}  Qxe1 {[%clk 0:00:02]} 45. Rxe1 {[%clk 0:00:03]}  Rc6 {[%clk 0:00:01]} 46. Qxd4+ {[%clk 0:00:03]}  Kxb3 {[%clk 0:00:02]} 47. Rb1+ {[%clk 0:00:02]}  Kc2 {[%clk 0:00:02]} 48. Qb4 {[%clk 0:00:01]}  Nxd3 {[%clk 0:00:03]} 49. Qb3+ {[%clk 0:00:01]}  Kd2 {[%clk 0:00:03]} 50. Rd1+ {[%clk 0:00:02]}  Ke3 {[%clk 0:00:00]} 51. Qxd3+ {[%clk 0:00:03]} 1-0


[Site "https://www.chess.com"]

[Event "Titled Tuesday Blitz November 07 Early 2023"]
[White "Wagner, Dennis"]
[Black "AlmasRakhmatullaev"]
[WhiteFideId "24650684"]
[WhiteElo "2717"]
[BlackElo "2866"]
[Result "1/2-1/2"]
[Round "10"]
[TimeControl "180+1"]
[Date "2023.11.07"]
[WhiteClock "0:00:11"]
[BlackClock "0:00:16"]
[Board "43"]

1. d4 {[%clk 0:03:00]}  d5 {[%clk 0:02:57]} 2. c4 {[%clk 0:03:00]}  e6 {[%clk 0:02:57]} 3. Nf3 {[%clk 0:03:01]}  a6 {[%clk 0:02:58]} 4. Bg5 {[%clk 0:02:55]}  Be7 {[%clk 0:02:57]} 5. Bxe7 {[%clk 0:02:55]}  Qxe7 {[%clk 0:02:58]} 6. Nbd2 {[%clk 0:02:56]}  Nf6 {[%clk 0:02:58]} 7. g3 {[%clk 0:02:56]}  O-O {[%clk 0:02:59]} 8. Bg2 {[%clk 0:02:57]}  b6 {[%clk 0:02:58]} 9. O-O {[%clk 0:02:54]}  Bb7 {[%clk 0:02:58]} 10. Ne5 {[%clk 0:02:48]}  c5 {[%clk 0:02:56]} 11. cxd5 {[%clk 0:02:36]}  exd5 {[%clk 0:02:56]} 12. Rc1 {[%clk 0:02:28]}  Rd8 {[%clk 0:02:46]} 13. e3 {[%clk 0:02:26]}  Nc6 {[%clk 0:02:44]} 14. Nxc6 {[%clk 0:02:23]}  Bxc6 {[%clk 0:02:45]} 15. b4 {[%clk 0:02:22]}  Bb5 {[%clk 0:02:44]} 16. bxc5 {[%clk 0:02:19]}  Bxf1 {[%clk 0:02:44]} 17. Bxf1 {[%clk 0:02:15]}  bxc5 {[%clk 0:02:44]} 18. dxc5 {[%clk 0:02:14]}  d4 {[%clk 0:02:44]} 19. exd4 {[%clk 0:02:08]}  Rxd4 {[%clk 0:02:45]} 20. Qc2 {[%clk 0:02:09]}  a5 {[%clk 0:02:37]} 21. Nb3 {[%clk 0:01:54]}  Rd7 {[%clk 0:02:34]} 22. Bg2 {[%clk 0:01:54]}  Raa7 {[%clk 0:02:23]} 23. c6 {[%clk 0:01:52]}  Rdc7 {[%clk 0:02:23]} 24. Nd4 {[%clk 0:01:52]}  Qe5 {[%clk 0:02:21]} 25. Qc5 {[%clk 0:01:44]}  Qxc5 {[%clk 0:01:49]} 26. Rxc5 {[%clk 0:01:44]}  a4 {[%clk 0:01:49]} 27. Rb5 {[%clk 0:01:38]}  Rc8 {[%clk 0:01:41]} 28. h3 {[%clk 0:01:30]}  g6 {[%clk 0:01:34]} 29. a3 {[%clk 0:01:27]}  Kg7 {[%clk 0:01:27]} 30. Rb4 {[%clk 0:01:23]}  Ne8 {[%clk 0:00:57]} 31. Nb5 {[%clk 0:01:08]}  Ra5 {[%clk 0:00:57]} 32. Nc3 {[%clk 0:01:08]}  Nc7 {[%clk 0:00:51]} 33. Nxa4 {[%clk 0:01:03]}  Rd8 {[%clk 0:00:48]} 34. g4 {[%clk 0:00:57]}  Rd2 {[%clk 0:00:43]} 35. Be4 {[%clk 0:00:33]}  Ra2 {[%clk 0:00:37]} 36. Nb6 {[%clk 0:00:31]}  R5xa3 {[%clk 0:00:32]} 37. Nd5 {[%clk 0:00:28]}  Ra1+ {[%clk 0:00:27]} 38. Kg2 {[%clk 0:00:28]}  Ne6 {[%clk 0:00:26]} 39. Rb7 {[%clk 0:00:26]}  Rc1 {[%clk 0:00:24]} 40. Re7 {[%clk 0:00:23]}  Rxc6 {[%clk 0:00:17]} 41. h4 {[%clk 0:00:23]}  Ra4 {[%clk 0:00:14]} 42. f3 {[%clk 0:00:21]}  Rd6 {[%clk 0:00:13]} 43. g5 {[%clk 0:00:20]}  h6 {[%clk 0:00:09]} 44. gxh6+ {[%clk 0:00:18]}  Kxh6 {[%clk 0:00:10]} 45. Rxf7 {[%clk 0:00:17]}  Nc5 {[%clk 0:00:10]} 46. Nf6 {[%clk 0:00:14]}  Rxf6 {[%clk 0:00:04]} 47. Rxf6 {[%clk 0:00:14]}  Nxe4 {[%clk 0:00:04]} 48. fxe4 {[%clk 0:00:14]}  Rxe4 {[%clk 0:00:05]} 49. Kg3 {[%clk 0:00:14]}  Kh5 {[%clk 0:00:05]} 50. Ra6 {[%clk 0:00:10]}  Rg4+ {[%clk 0:00:05]} 51. Kh3 {[%clk 0:00:10]}  Rxh4+ {[%clk 0:00:06]} 52. Kg3 {[%clk 0:00:10]}  g5 {[%clk 0:00:07]} 53. Ra1 {[%clk 0:00:09]}  Rg4+ {[%clk 0:00:06]} 54. Kh3 {[%clk 0:00:09]}  Rb4 {[%clk 0:00:07]} 55. Kg3 {[%clk 0:00:09]}  Rb3+ {[%clk 0:00:07]} 56. Kg2 {[%clk 0:00:10]}  Kh4 {[%clk 0:00:08]} 57. Kh2 {[%clk 0:00:10]}  g4 {[%clk 0:00:08]} 58. Kg2 {[%clk 0:00:11]}  Rb2+ {[%clk 0:00:09]} 59. Kg1 {[%clk 0:00:11]}  Kh3 {[%clk 0:00:09]} 60. Rc1 {[%clk 0:00:11]}  g3 {[%clk 0:00:08]} 61. Ra1 {[%clk 0:00:11]}  Rh2 {[%clk 0:00:07]} 62. Rc1 {[%clk 0:00:11]}  Rf2 {[%clk 0:00:07]} 63. Rb1 {[%clk 0:00:11]}  Rg2+ {[%clk 0:00:07]} 64. Kh1 {[%clk 0:00:11]}  Rc2 {[%clk 0:00:06]} 65. Kg1 {[%clk 0:00:11]}  Rf2 {[%clk 0:00:06]} 66. Rc1 {[%clk 0:00:11]}  Rf3 {[%clk 0:00:07]} 67. Rb1 {[%clk 0:00:11]}  g2 {[%clk 0:00:07]} 68. Rc1 {[%clk 0:00:11]}  Kg3 {[%clk 0:00:07]} 69. Rb1 {[%clk 0:00:12]}  Re3 {[%clk 0:00:08]} 70. Rc1 {[%clk 0:00:10]}  Kf3 {[%clk 0:00:08]} 71. Rd1 {[%clk 0:00:11]}  Re2 {[%clk 0:00:07]} 72. Rd3+ {[%clk 0:00:10]}  Kf4 {[%clk 0:00:08]} 73. Rd1 {[%clk 0:00:10]}  Ke3 {[%clk 0:00:07]} 74. Ra1 {[%clk 0:00:10]}  Kf3 {[%clk 0:00:08]} 75. Rb1 {[%clk 0:00:10]}  Re3 {[%clk 0:00:07]} 76. Rc1 {[%clk 0:00:10]}  Kg3 {[%clk 0:00:08]} 77. Rb1 {[%clk 0:00:11]}  Rf3 {[%clk 0:00:08]} 78. Rc1 {[%clk 0:00:11]}  Rf4 {[%clk 0:00:09]} 79. Rc3+ {[%clk 0:00:11]}  Rf3 {[%clk 0:00:10]} 80. Rc1 {[%clk 0:00:11]}  Kh3 {[%clk 0:00:10]} 81. Rd1 {[%clk 0:00:11]}  Rg3 {[%clk 0:00:10]} 82. Rc1 {[%clk 0:00:11]}  Kg4 {[%clk 0:00:11]} 83. Rc2 {[%clk 0:00:11]}  Kh3 {[%clk 0:00:11]} 84. Rf2 {[%clk 0:00:11]}  Ra3 {[%clk 0:00:11]} 85. Ra2 {[%clk 0:00:01]}  Rc3 {[%clk 0:00:07]} 86. Ra1 {[%clk 0:00:01]}  Kg3 {[%clk 0:00:05]} 87. Rb1 {[%clk 0:00:02]}  Rf3 {[%clk 0:00:06]} 88. Ra1 {[%clk 0:00:03]}  Kf4 {[%clk 0:00:07]} 89. Rb1 {[%clk 0:00:03]}  Rg3 {[%clk 0:00:07]} 90. Ra1 {[%clk 0:00:04]}  Kg4 {[%clk 0:00:08]} 91. Rb1 {[%clk 0:00:04]}  Kh3 {[%clk 0:00:08]} 92. Ra1 {[%clk 0:00:05]}  Re3 {[%clk 0:00:09]} 93. Rb1 {[%clk 0:00:05]}  Ra3 {[%clk 0:00:10]} 94. Rc1 {[%clk 0:00:05]}  Ra2 {[%clk 0:00:10]} 95. Rb1 {[%clk 0:00:06]}  Kg3 {[%clk 0:00:11]} 96. Rc1 {[%clk 0:00:06]}  Kg4 {[%clk 0:00:11]} 97. Rb1 {[%clk 0:00:07]}  Kg3 {[%clk 0:00:11]} 98. Rb3+ {[%clk 0:00:07]}  Kf4 {[%clk 0:00:11]} 99. Rb4+ {[%clk 0:00:07]}  Kf3 {[%clk 0:00:12]} 100. Rb3+ {[%clk 0:00:08]}  Kg4 {[%clk 0:00:12]} 101. Rb4+ {[%clk 0:00:08]}  Kg5 {[%clk 0:00:13]} 102. Rb5+ {[%clk 0:00:08]}  Kf4 {[%clk 0:00:13]} 103. Rb4+ {[%clk 0:00:09]}  Kf3 {[%clk 0:00:14]} 104. Rb3+ {[%clk 0:00:09]}  Ke2 {[%clk 0:00:14]} 105. Kxg2 {[%clk 0:00:09]}  Kd2 {[%clk 0:00:14]} 106. Kf3 {[%clk 0:00:09]}  Kc2 {[%clk 0:00:15]} 107. Re3 {[%clk 0:00:10]}  Rb2 {[%clk 0:00:15]} 108. Re2+ {[%clk 0:00:10]}  Kb1 {[%clk 0:00:15]} 109. Rxb2+ {[%clk 0:00:11]}  Kxb2 {[%clk 0:00:16]} 1/2-1/2


[Site "https://www.chess.com"]

[Event "Titled Tuesday Blitz November 07 Early 2023"]
[White "MKlose11"]
[Black "Mikhailovsky, Vladimir"]
[BlackFideId "34105414"]
[WhiteElo "2709"]
[BlackElo "2816"]
[Result "1/2-1/2"]
[Round "10"]
[TimeControl "180+1"]
[Date "2023.11.07"]
[WhiteClock "0:00:33"]
[BlackClock "0:00:10"]
[Board "44"]

1. e4 {[%clk 0:03:00]}  c5 {[%clk 0:03:00]} 2. Nc3 {[%clk 0:03:00]}  d6 {[%clk 0:02:59]} 3. g3 {[%clk 0:03:00]}  g6 {[%clk 0:02:57]} 4. d3 {[%clk 0:03:01]}  Bg7 {[%clk 0:02:58]} 5. Be3 {[%clk 0:03:00]}  Nc6 {[%clk 0:02:58]} 6. Qd2 {[%clk 0:03:00]}  Rb8 {[%clk 0:02:58]} 7. Bg2 {[%clk 0:03:00]}  b5 {[%clk 0:02:58]} 8. Nge2 {[%clk 0:03:00]}  b4 {[%clk 0:02:56]} 9. Nd1 {[%clk 0:03:00]}  Nf6 {[%clk 0:02:55]} 10. h3 {[%clk 0:03:00]}  O-O {[%clk 0:02:54]} 11. O-O {[%clk 0:03:00]}  Bb7 {[%clk 0:02:45]} 12. Bh6 {[%clk 0:03:00]}  e5 {[%clk 0:02:39]} 13. Bxg7 {[%clk 0:03:00]}  Kxg7 {[%clk 0:02:39]} 14. f4 {[%clk 0:02:57]}  Nd4 {[%clk 0:02:34]} 15. Ne3 {[%clk 0:02:49]}  Nh5 {[%clk 0:01:48]} 16. Kh2 {[%clk 0:02:47]}  exf4 {[%clk 0:01:36]} 17. Nxf4 {[%clk 0:02:45]}  Nxg3 {[%clk 0:00:58]} 18. Kxg3 {[%clk 0:02:40]}  Qg5+ {[%clk 0:00:46]} 19. Kh2 {[%clk 0:02:40]}  Qe5 {[%clk 0:00:46]} 20. Kh1 {[%clk 0:02:36]}  Nb5 {[%clk 0:00:31]} 21. Nc4 {[%clk 0:02:32]}  Qe7 {[%clk 0:00:26]} 22. Qf2 {[%clk 0:02:29]}  Nd4 {[%clk 0:00:16]} 23. c3 {[%clk 0:02:27]}  bxc3 {[%clk 0:00:15]} 24. bxc3 {[%clk 0:02:28]}  Nb5 {[%clk 0:00:16]} 25. a4 {[%clk 0:02:21]}  Nc7 {[%clk 0:00:15]} 26. Qg3 {[%clk 0:02:20]}  Ne6 {[%clk 0:00:11]} 27. Nxe6+ {[%clk 0:02:17]}  Qxe6 {[%clk 0:00:11]} 28. Qxd6 {[%clk 0:02:10]}  Qe8 {[%clk 0:00:11]} 29. Qe5+ {[%clk 0:02:04]}  Qxe5 {[%clk 0:00:09]} 30. Nxe5 {[%clk 0:02:05]}  Ba6 {[%clk 0:00:10]} 31. Nd7 {[%clk 0:02:05]}  Bxd3 {[%clk 0:00:08]} 32. Rfd1 {[%clk 0:02:04]}  c4 {[%clk 0:00:05]} 33. Nxf8 {[%clk 0:02:03]}  Kxf8 {[%clk 0:00:06]} 34. Bf1 {[%clk 0:02:03]}  Bxe4+ {[%clk 0:00:06]} 35. Kg1 {[%clk 0:02:03]}  Rb2 {[%clk 0:00:06]} 36. Rd4 {[%clk 0:02:00]}  f5 {[%clk 0:00:07]} 37. Rxc4 {[%clk 0:02:00]}  Kg7 {[%clk 0:00:06]} 38. Rd1 {[%clk 0:02:00]}  Kf6 {[%clk 0:00:06]} 39. Rc7 {[%clk 0:01:58]}  Ke5 {[%clk 0:00:03]} 40. Rxh7 {[%clk 0:01:56]}  Kf4 {[%clk 0:00:04]} 41. h4 {[%clk 0:01:55]}  Kg3 {[%clk 0:00:02]} 42. Rg7 {[%clk 0:01:53]}  f4 {[%clk 0:00:03]} 43. Rd6 {[%clk 0:01:45]}  Rb1 {[%clk 0:00:01]} 44. Rdxg6+ {[%clk 0:01:43]}  Kf3 {[%clk 0:00:01]} 45. Rf6 {[%clk 0:01:40]}  Bd3 {[%clk 0:00:02]} 46. Rxf4+ {[%clk 0:01:19]}  Kxf4 {[%clk 0:00:02]} 47. Rf7+ {[%clk 0:01:20]}  Kg3 {[%clk 0:00:02]} 48. h5 {[%clk 0:01:17]}  Bxf1 {[%clk 0:00:02]} 49. Rxf1 {[%clk 0:01:16]}  Rb6 {[%clk 0:00:02]} 50. Rf5 {[%clk 0:01:11]}  Rb1+ {[%clk 0:00:02]} 51. Rf1 {[%clk 0:01:11]}  Rb6 {[%clk 0:00:03]} 52. Rd1 {[%clk 0:01:09]}  Kg4 {[%clk 0:00:03]} 53. Rd5 {[%clk 0:01:06]}  Rc6 {[%clk 0:00:03]} 54. Kf2 {[%clk 0:00:58]}  Rxc3 {[%clk 0:00:04]} 55. Ra5 {[%clk 0:00:56]}  Rh3 {[%clk 0:00:04]} 56. Ke2 {[%clk 0:00:53]}  Rxh5 {[%clk 0:00:03]} 57. Rxa7 {[%clk 0:00:53]}  Rh3 {[%clk 0:00:02]} 58. Kd2 {[%clk 0:00:51]}  Kf4 {[%clk 0:00:02]} 59. Kc2 {[%clk 0:00:49]}  Ke5 {[%clk 0:00:03]} 60. Rc7 {[%clk 0:00:45]}  Kd6 {[%clk 0:00:03]} 61. Rc4 {[%clk 0:00:45]}  Kd5 {[%clk 0:00:02]} 62. Rc7 {[%clk 0:00:30]}  Ra3 {[%clk 0:00:03]} 63. Ra7 {[%clk 0:00:30]}  Kc6 {[%clk 0:00:03]} 64. Kb2 {[%clk 0:00:30]}  Kb6 {[%clk 0:00:04]} 65. Ra8 {[%clk 0:00:29]}  Kb7 {[%clk 0:00:03]} 66. Ra5 {[%clk 0:00:28]}  Rh3 {[%clk 0:00:03]} 67. Rb5+ {[%clk 0:00:26]}  Ka6 {[%clk 0:00:04]} 68. Re5 {[%clk 0:00:26]}  Kb6 {[%clk 0:00:04]} 69. Rb5+ {[%clk 0:00:26]}  Ka6 {[%clk 0:00:04]} 70. Rb3 {[%clk 0:00:27]}  Rxb3+ {[%clk 0:00:04]} 71. Kxb3 {[%clk 0:00:28]}  Ka5 {[%clk 0:00:04]} 72. Ka3 {[%clk 0:00:28]}  Ka6 {[%clk 0:00:04]} 73. Kb4 {[%clk 0:00:29]}  Kb6 {[%clk 0:00:05]} 74. a5+ {[%clk 0:00:29]}  Ka6 {[%clk 0:00:06]} 75. Ka4 {[%clk 0:00:30]}  Ka7 {[%clk 0:00:05]} 76. Kb5 {[%clk 0:00:31]}  Kb7 {[%clk 0:00:06]} 77. a6+ {[%clk 0:00:32]}  Ka7 {[%clk 0:00:07]} 78. Ka5 {[%clk 0:00:32]}  Ka8 {[%clk 0:00:08]} 79. Kb6 {[%clk 0:00:33]}  Kb8 {[%clk 0:00:09]} 80. a7+ {[%clk 0:00:33]}  Ka8 {[%clk 0:00:10]} 81. Ka6 {[%clk 0:00:33]} 1/2-1/2


[Site "https://www.chess.com"]

[Event "Titled Tuesday Blitz November 07 Early 2023"]
[White "Shuvalova, Polina"]
[Black "Molina, Roberto Junio Brito"]
[WhiteFideId "24171760"]
[BlackFideId "2109450"]
[WhiteElo "2662"]
[BlackElo "2792"]
[Result "1-0"]
[Round "10"]
[TimeControl "180+1"]
[Date "2023.11.07"]
[WhiteClock "0:01:28"]
[BlackClock "0:01:19"]
[Board "46"]

1. e4 {[%clk 0:03:00]}  c6 {[%clk 0:02:59]} 2. d4 {[%clk 0:03:00]}  d5 {[%clk 0:03:00]} 3. exd5 {[%clk 0:03:01]}  cxd5 {[%clk 0:03:00]} 4. Bd3 {[%clk 0:03:02]}  Nc6 {[%clk 0:03:00]} 5. c3 {[%clk 0:03:03]}  Qc7 {[%clk 0:02:59]} 6. Ne2 {[%clk 0:03:02]}  Bg4 {[%clk 0:02:57]} 7. O-O {[%clk 0:03:02]}  e6 {[%clk 0:02:56]} 8. Qe1 {[%clk 0:03:03]}  Nf6 {[%clk 0:02:51]} 9. Bg5 {[%clk 0:02:57]}  Bxe2 {[%clk 0:02:47]} 10. Qxe2 {[%clk 0:02:56]}  Be7 {[%clk 0:02:46]} 11. Nd2 {[%clk 0:02:56]}  h6 {[%clk 0:02:45]} 12. Be3 {[%clk 0:02:54]}  Bd6 {[%clk 0:02:44]} 13. g3 {[%clk 0:02:53]}  h5 {[%clk 0:02:43]} 14. Bg5 {[%clk 0:02:48]}  O-O-O {[%clk 0:02:43]} 15. Nf3 {[%clk 0:02:42]}  Rde8 {[%clk 0:02:42]} 16. Rfe1 {[%clk 0:02:38]}  e5 {[%clk 0:02:40]} 17. dxe5 {[%clk 0:02:34]}  Nxe5 {[%clk 0:02:40]} 18. Nxe5 {[%clk 0:02:33]}  Rxe5 {[%clk 0:02:40]} 19. Qd2 {[%clk 0:02:32]}  Ne4 {[%clk 0:02:33]} 20. Bxe4 {[%clk 0:02:29]}  dxe4 {[%clk 0:02:34]} 21. Rad1 {[%clk 0:02:21]}  Re6 {[%clk 0:02:30]} 22. Qd4 {[%clk 0:02:16]}  Bc5 {[%clk 0:02:25]} 23. Qxg7 {[%clk 0:02:13]}  Rhe8 {[%clk 0:02:24]} 24. Be3 {[%clk 0:02:09]}  Bxe3 {[%clk 0:02:14]} 25. Rxe3 {[%clk 0:02:09]}  f5 {[%clk 0:02:15]} 26. Qg5 {[%clk 0:02:00]}  Qf7 {[%clk 0:01:51]} 27. Qf4 {[%clk 0:01:54]}  b6 {[%clk 0:01:45]} 28. Rd5 {[%clk 0:01:42]}  Rf6 {[%clk 0:01:44]} 29. c4 {[%clk 0:01:42]}  Kb7 {[%clk 0:01:43]} 30. h4 {[%clk 0:01:41]}  Rc8 {[%clk 0:01:41]} 31. b3 {[%clk 0:01:40]}  Rc7 {[%clk 0:01:40]} 32. Kg2 {[%clk 0:01:40]}  Rd7 {[%clk 0:01:37]} 33. Rxd7+ {[%clk 0:01:33]}  Qxd7 {[%clk 0:01:38]} 34. Qg5 {[%clk 0:01:34]}  Qf7 {[%clk 0:01:38]} 35. Qf4 {[%clk 0:01:32]}  Kc6 {[%clk 0:01:35]} 36. Re2 {[%clk 0:01:32]}  Rd6 {[%clk 0:01:35]} 37. Rxe4 {[%clk 0:01:30]}  Rf6 {[%clk 0:01:25]} 38. Re5 {[%clk 0:01:30]}  Kb7 {[%clk 0:01:25]} 39. Qf3+ {[%clk 0:01:30]}  Kc7 {[%clk 0:01:24]} 40. Qd5 {[%clk 0:01:31]}  Qg6 {[%clk 0:01:19]} 41. Re7+ {[%clk 0:01:28]} 1-0


[Site "https://www.chess.com"]

[Event "Titled Tuesday Blitz November 07 Early 2023"]
[White "Skliarov, Viktor"]
[Black "Yeremyan_ChessMate"]
[WhiteFideId "14106736"]
[WhiteElo "2668"]
[BlackElo "2775"]
[Result "1/2-1/2"]
[Round "10"]
[TimeControl "180+1"]
[Date "2023.11.07"]
[WhiteClock "0:00:26"]
[BlackClock "0:00:15"]
[Board "47"]

1. e4 {[%clk 0:03:00]}  Nf6 {[%clk 0:02:56]} 2. Nc3 {[%clk 0:02:59]}  d5 {[%clk 0:02:54]} 3. exd5 {[%clk 0:02:59]}  Nxd5 {[%clk 0:02:55]} 4. Bc4 {[%clk 0:02:59]}  c6 {[%clk 0:02:55]} 5. Qf3 {[%clk 0:02:59]}  Nf6 {[%clk 0:02:56]} 6. Qe2 {[%clk 0:03:00]}  Nbd7 {[%clk 0:02:54]} 7. Nf3 {[%clk 0:03:00]}  Nb6 {[%clk 0:02:55]} 8. Bb3 {[%clk 0:02:59]}  Bf5 {[%clk 0:02:56]} 9. d4 {[%clk 0:02:59]}  e6 {[%clk 0:02:56]} 10. O-O {[%clk 0:02:50]}  Be7 {[%clk 0:02:56]} 11. h3 {[%clk 0:02:51]}  O-O {[%clk 0:02:56]} 12. Bf4 {[%clk 0:02:51]}  h6 {[%clk 0:02:56]} 13. Rad1 {[%clk 0:02:50]}  a5 {[%clk 0:02:57]} 14. a4 {[%clk 0:02:50]}  Nbd5 {[%clk 0:02:57]} 15. Nxd5 {[%clk 0:02:45]}  exd5 {[%clk 0:02:46]} 16. Rfe1 {[%clk 0:02:36]}  Re8 {[%clk 0:02:43]} 17. Ne5 {[%clk 0:02:35]}  Bf8 {[%clk 0:02:40]} 18. Bc1 {[%clk 0:02:25]}  Nd7 {[%clk 0:02:21]} 19. Qf3 {[%clk 0:02:20]}  Nxe5 {[%clk 0:02:04]} 20. Qxf5 {[%clk 0:02:18]}  Ng6 {[%clk 0:02:01]} 21. c3 {[%clk 0:02:16]}  Qd6 {[%clk 0:01:55]} 22. Bc2 {[%clk 0:02:13]}  Be7 {[%clk 0:01:36]} 23. g3 {[%clk 0:02:03]}  Rad8 {[%clk 0:01:31]} 24. Kg2 {[%clk 0:01:59]}  Qf6 {[%clk 0:01:31]} 25. h4 {[%clk 0:01:57]}  Qxf5 {[%clk 0:01:30]} 26. Bxf5 {[%clk 0:01:58]}  Nf8 {[%clk 0:01:31]} 27. h5 {[%clk 0:01:55]}  Bd6 {[%clk 0:01:30]} 28. f4 {[%clk 0:01:52]}  Nh7 {[%clk 0:01:27]} 29. Kf3 {[%clk 0:01:49]}  Nf6 {[%clk 0:01:25]} 30. g4 {[%clk 0:01:50]}  b5 {[%clk 0:01:26]} 31. axb5 {[%clk 0:01:35]}  cxb5 {[%clk 0:01:26]} 32. g5 {[%clk 0:01:36]}  hxg5 {[%clk 0:01:23]} 33. fxg5 {[%clk 0:01:35]}  Nxh5 {[%clk 0:01:23]} 34. Rxe8+ {[%clk 0:01:34]}  Rxe8 {[%clk 0:01:23]} 35. Bd7 {[%clk 0:01:30]}  Rd8 {[%clk 0:01:15]} 36. Bxb5 {[%clk 0:01:28]}  g6 {[%clk 0:01:15]} 37. Re1 {[%clk 0:01:22]}  Ng7 {[%clk 0:01:15]} 38. Bc6 {[%clk 0:01:15]}  Bb8 {[%clk 0:00:38]} 39. Bd2 {[%clk 0:01:09]}  Ne6 {[%clk 0:00:37]} 40. Ra1 {[%clk 0:01:08]}  Bc7 {[%clk 0:00:37]} 41. Kg4 {[%clk 0:01:04]}  Kf8 {[%clk 0:00:37]} 42. Be3 {[%clk 0:00:52]}  Ke7 {[%clk 0:00:37]} 43. Rf1 {[%clk 0:00:43]}  Rd6 {[%clk 0:00:32]} 44. Ba4 {[%clk 0:00:40]}  Rb6 {[%clk 0:00:32]} 45. Bc1 {[%clk 0:00:39]}  Rb8 {[%clk 0:00:31]} 46. Rh1 {[%clk 0:00:38]}  Rc8 {[%clk 0:00:20]} 47. Rh7 {[%clk 0:00:33]}  Rd8 {[%clk 0:00:18]} 48. Bd2 {[%clk 0:00:33]}  Rd6 {[%clk 0:00:18]} 49. Bc1 {[%clk 0:00:31]}  Rb6 {[%clk 0:00:19]} 50. Rh8 {[%clk 0:00:31]}  Rb8 {[%clk 0:00:12]} 51. Rxb8 {[%clk 0:00:31]}  Bxb8 {[%clk 0:00:13]} 52. Bc6 {[%clk 0:00:31]}  Kd6 {[%clk 0:00:14]} 53. Be8 {[%clk 0:00:31]}  Ke7 {[%clk 0:00:14]} 54. Bc6 {[%clk 0:00:31]}  Kd6 {[%clk 0:00:15]} 55. Be8 {[%clk 0:00:26]}  Ke7 {[%clk 0:00:15]} 56. Bc6 {[%clk 0:00:26]} 1/2-1/2


[Site "https://www.chess.com"]